bitfinex/quotes_ETHUSD_20241120
["timestamp","ask_amount","ask_price","bid_price","bid_amount"]
[1732131416667,3.28206,3046.9,3046.4,3.28254]
[1732131416996,3.28206,3046.9,3046.2,4.04567]
[1732131416997,3.32587333,3046.8,3046.2,7.32834]
[1732131417150,0.04373333,3046.8,3046.3,3.28262]
[1732131417354,0.04373333,3046.8,3046.2,0.7629]
[1732131417595,0.04373333,3046.8,3046.0,3.28295]
[1732131417751,0.8196,3046.7,3045.8,4.41565786]
[1732131417957,0.8196,3046.7,3045.6,3.28336]
[1732131417958,3.28287,3046.2,3045.6,3.28332]
[1732131418280,3.28289,3046.1,3045.6,3.28332]
[1732131418466,3.28289,3046.1,3045.0,3.61175]
[1732131418467,4.10261,3046.0,3045.2,4.08143]
[1732131418676,4.10261,3046.0,3045.4,3.28362]
[1732131418677,4.10265,3046.0,3045.4,3.28362]
[1732131418984,0.04209888,3045.9,3045.6,3.2834]
[1732131419369,0.04209888,3045.9,3045.4,3.28357]
[1732131419591,0.04209888,3045.9,3045.5,4.08108]
[1732131419828,0.8196,3046.5,3045.6,3.28334]
[1732131419829,3.28279,3046.2,3045.6,3.28334]
[1732131419969,0.8196,3046.5,3045.5,0.7976]
[1732131420170,0.8196,3046.5,3045.8,3.28318]
[1732131420171,0.0421091,3046.1,3045.8,3.28318]
[1732131420384,3.28267,3046.3,3045.8,3.28318]
[1732131420603,0.04208281,3046.0,3045.8,3.28318]
[1732131420807,3.28267,3046.3,3045.8,3.28318]
[1732131421022,0.04205652,3045.9,3045.8,3.28318]
[1732131421204,3.28267,3046.3,3045.8,3.28318]
[1732131421707,0.04076844,3046.2,3045.8,3.28318]
[1732131422038,3.28272,3046.3,3045.8,3.28318]
[1732131422230,0.04074215,3046.1,3045.8,3.28318]
[1732131422532,3.28272,3046.3,3045.8,3.28318]
[1732131422533,0.04071586,3046.0,3045.8,3.28318]
[1732131422676,3.28279,3046.2,3045.6,3.28336]
[1732131423052,0.8196,3046.5,3045.4,3.28356]
[1732131423053,3.28318,3045.9,3045.4,3.28356]
[1732131423237,3.28318,3045.9,3045.2,4.0551]
[1732131423238,0.7823,3045.9,3045.2,4.05507]
[1732131423532,0.04066275,3045.8,3045.2,1.17681]
[1732131423703,0.04066275,3045.8,3045.0,3.28402]
[1732131423910,3.28361,3045.5,3045.0,3.28402]
[1732131424241,3.28361,3045.5,3044.8,0.7766]
[1732131424242,3.28381,3045.3,3044.8,0.7766]
[1732131424394,3.28398,3045.1,3044.5,3.28453]
[1732131424602,3.28398,3045.1,3044.3,3.645999]
[1732131424603,3.28419,3044.9,3044.3,3.645999]
[1732131424809,0.03906812,3045.0,3044.5,3.2845]
[1732131425103,3.28398,3045.1,3044.6,3.28445]
[1732131425104,0.03903972,3044.9,3044.6,3.28445]
[1732131425292,0.8014,3045.2,3044.6,3.28445]
[1732131425490,0.03909233,3045.1,3044.6,3.28445]
[1732131425689,0.03909233,3045.1,3044.9,3.28411]
[1732131425892,3.01,3046.2,3045.4,3.28362]
[1732131425893,4.0845,3045.9,3045.4,3.28362]
[1732131426196,0.03793357,3045.8,3044.9,0.7766]
[1732131426437,3.28353,3045.5,3045.0,3.284]
[1732131426796,0.8014,3045.9,3044.9,1.15629506]
[1732131426797,0.03660832,3045.4,3045.2,3.28385]
[1732131427147,4.08456,3045.9,3045.4,3.2836]
[1732131427342,0.03671298,3045.8,3045.5,3.28344]
[1732131427540,3.28307,3046.0,3045.5,3.28344]
[1732131427839,3.2823,3046.7,3046.0,3.28288]
[1732131428000,3.28241,3046.6,3045.8,3.28312]
[1732131428207,4.0882,3046.8,3045.6,0.8199]
[1732131428407,4.0882,3046.8,3046.2,3.28271]
[1732131428650,3.28224,3046.7,3046.2,3.28271]
[1732131428955,3.2824,3046.6,3046.0,3.28299]
[1732131429127,3.28233,3046.7,3046.0,3.28292]
[1732131429311,3.28235,3046.6,3046.1,3.28288]
[1732131429626,3.28257,3046.4,3045.9,3.28304]
[1732131429827,3.2823,3046.7,3045.9,3.28303]
[1732131430033,0.806,3046.8,3046.3,3.28266]
[1732131430034,4.08814,3046.8,3046.3,3.28266]
[1732131430236,4.08813,3046.8,3046.1,3.28278]
[1732131430523,0.806,3046.8,3046.2,0.8246]
[1732131430934,0.806,3046.8,3046.2,4.10733]
[1732131431255,0.806,3046.8,3046.3,3.28265]
[1732131431842,0.806,3046.8,3046.4,3.28248]
[1732131432149,0.806,3046.8,3046.2,0.8246]
[1732131432150,3.28237,3046.6,3046.2,0.8246]
[1732131432347,0.806,3046.8,3046.2,0.8246]
[1732131432524,0.806,3046.8,3046.4,3.2825]
[1732131432922,0.7775,3047.1,3046.4,3.28254]
[1732131433413,0.7775,3047.1,3046.6,3.28232]
[1732131433618,3.28193,3047.0,3046.4,3.28254]
[1732131433835,0.7775,3047.1,3046.4,0.738988]
[1732131434033,0.7893,3047.5,3047.3,3.28159]
[1732131434210,0.0922364,3047.7,3047.3,3.28159]
[1732131434417,0.0922364,3047.7,3047.4,3.28147]
[1732131434684,0.0922364,3047.7,3047.2,3.609775]
[1732131434901,0.0922364,3047.7,3047.3,3.28152]
[1732131435110,3.28144,3047.5,3046.6,3.28232]
[1732131435416,3.28187,3047.1,3046.4,7.32954]
[1732131435634,3.28165,3047.3,3046.6,3.28225]
[1732131435635,3.2817,3047.2,3046.6,3.28225]
[1732131435782,0.759,3047.5,3046.4,0.7646]
[1732131435783,0.03449153,3047.0,3046.4,0.7646]
[1732131435977,4.04042,3047.5,3046.4,1.169312]
[1732131435978,0.0345178,3047.1,3046.4,1.169312]
[1732131436177,0.03455966,3046.9,3046.4,0.7646]
[1732131436422,3.28177,3047.2,3046.6,3.28234]
[1732131436779,3.28177,3047.2,3046.5,3.28237]
[1732131436780,0.03461221,3047.1,3046.5,3.28237]
[1732131437284,0.03461221,3047.1,3046.5,6.56474]
[1732131437511,0.03461221,3047.1,3046.5,3.28237]
[1732131437676,0.03461221,3047.1,3046.5,3.28236]
[1732131437878,0.03461221,3047.1,3047.0,3.28191]
[1732131438085,0.0922364,3047.7,3047.0,3.28191]
[1732131438331,0.03473194,3047.6,3047.2,3.28162]
[1732131438532,0.03473194,3047.6,3047.4,3.28142]
[1732131439037,0.03473194,3047.6,3047.5,3.28137]
[1732131439534,0.03473194,3047.6,3047.2,3.28164]
[1732131439738,0.03473194,3047.6,3047.1,0.328191]
[1732131439739,0.03473194,3047.6,3047.5,3.28137]
[1732131440286,0.0922364,3047.7,3047.5,3.28137]
[1732131440483,0.0922364,3047.7,3047.6,3.28127]
[1732131440727,0.1269946,3047.7,3047.6,3.28127]
[1732131440947,0.0922364,3047.7,3047.6,3.28127]
[1732131441150,0.0922364,3047.7,3047.6,4.739034]
[1732131442252,0.0922364,3047.7,3047.6,5.32184186]
[1732131442414,0.0922364,3047.7,3047.6,4.739034]
[1732131443700,0.0922364,3047.7,3047.3,3.28153]
[1732131443901,0.03252997,3047.6,3047.2,4.09052]
[1732131444104,0.03252997,3047.6,3047.3,3.28152]
[1732131444327,0.03252997,3047.6,3047.2,4.499572]
[1732131444328,0.03252997,3047.6,3047.5,3.28137]
[1732131445136,0.03252997,3047.6,3047.4,3.28139]
[1732131445357,0.03252997,3047.6,3047.4,4.0594742]
[1732131445636,0.03252997,3047.6,3047.5,3.28137]
[1732131445839,0.03252997,3047.6,3047.4,0.7780842]
[1732131446046,0.03252997,3047.6,3047.3,3.2815]
[1732131446202,0.0922364,3047.7,3047.3,3.2815]
[1732131446403,0.0922364,3047.7,3047.3,3.28153]
[1732131446607,0.0922364,3047.7,3047.4,3.2814]
[1732131446608,0.03045361,3047.6,3047.4,3.2814]
[1732131446828,0.03045361,3047.6,3047.4,3.9785982]
[1732131447406,0.03045361,3047.6,3047.5,3.28137]
[1732131447742,0.04015749,3047.6,3047.5,3.28137]
[1732131448048,0.0922364,3047.7,3047.6,3.28127]
[1732131448256,0.0922364,3047.7,3047.6,4.41078182]
[1732131448750,0.0922364,3047.7,3047.6,4.96078182]
[1732131450106,0.0922364,3047.7,3047.6,1.12951182]
[1732131450307,0.0922364,3047.7,3047.6,3.28127]
[1732131451206,0.0922364,3047.7,3047.6,4.09837]
[1732131452052,0.0922364,3047.7,3047.6,7.68117535]
[1732131452217,0.0922364,3047.7,3047.6,7.64837]
[1732131453403,0.0922364,3047.7,3047.6,11.36385611]
[1732131453606,0.7757,3048.9,3048.3,8.6977636]
[1732131453853,0.7757,3048.9,3048.4,3.28034]
[1732131454445,0.7757,3048.9,3048.5,3.28028]
[1732131455922,0.7757,3048.9,3048.0,0.7785]
[1732131456246,0.7257,3048.9,3048.5,3.28027]
[1732131456659,0.7257,3048.9,3048.5,3.936345]
[1732131457006,0.7257,3048.9,3048.5,3.28027]
[1732131457212,0.7257,3048.9,3048.0,0.7785]
[1732131457522,3.28019,3048.6,3048.0,3.2808]
[1732131457730,3.28019,3048.6,3048.1,3.28067]
[1732131458251,0.7257,3048.9,3047.9,3.28084]
[1732131458548,3.28026,3048.6,3048.0,3.2808]
[1732131458748,0.7257,3048.9,3047.8,3.28098]
[1732131458949,0.7257,3048.9,3047.9,3.28094]
[1732131459252,0.7907,3048.2,3047.7,3.28113]
[1732131459590,0.7907,3048.2,3047.9,3.28093]
[1732131459908,0.7907,3048.2,3047.8,3.28096]
[1732131460126,0.7907,3048.2,3047.9,3.28093]
[1732131460322,0.7907,3048.6,3047.8,0.8269]
[1732131460547,0.7907,3048.6,3048.1,3.28071]
[1732131460869,0.7907,3048.6,3048.1,3.28072]
[1732131461041,4.07095,3048.6,3047.9,3.28086]
[1732131461246,3.28036,3048.5,3047.9,3.28086]
[1732131461454,3.28043,3048.4,3047.9,3.28086]
[1732131461865,4.07129,3048.3,3047.7,3.28113]
[1732131462010,4.07129,3048.3,3047.8,3.28103]
[1732131462365,3.28071,3048.2,3047.7,3.28109]
[1732131462711,0.7992,3048.8,3047.7,3.937334]
[1732131462949,3.28044,3048.4,3047.9,3.28088]
[1732131463538,3.28044,3048.4,3047.3,9.30087336]
[1732131463539,3.28073,3048.1,3047.6,3.28121]
[1732131463714,3.28073,3048.1,3047.5,3.28132]
[1732131463927,3.28093,3048.0,3047.3,1.06777734]
[1732131464129,3.28107,3047.8,3047.2,3.28163]
[1732131464345,3.28107,3047.8,3047.2,4.23797]
[1732131464788,3.28107,3047.8,3047.3,3.28158]
[1732131464989,3.2813,3047.6,3046.9,0.7555]
[1732131465306,3.28154,3047.4,3046.9,0.7555]
[1732131465467,3.28181,3047.1,3046.4,3.2825]
[1732131465651,3.28199,3047.0,3046.5,0.30193334]
[1732131465846,3.28199,3047.0,3046.2,5.19839982]
[1732131466149,0.8094,3046.9,3046.2,1.13137982]
[1732131466350,3.28226,3046.7,3046.2,4.8555578]
[1732131466555,4.09149,3046.9,3046.2,4.8555578]
[1732131466776,0.8094,3046.9,3046.3,0.03282536]
[1732131466977,4.09088,3047.4,3046.8,3.28206]
[1732131467185,0.8094,3047.4,3046.9,3.282]
[1732131467695,0.8094,3047.4,3046.5,4.06671]
[1732131468018,3.28181,3047.1,3046.5,4.52228483]
[1732131468160,3.28181,3047.1,3046.5,4.52224483]
[1732131468694,3.28165,3047.3,3046.5,1.23987483]
[1732131468854,0.8094,3047.4,3046.5,0.7843]
[1732131469055,0.8094,3047.4,3046.8,3.28205]
[1732131469262,4.09089,3047.4,3046.8,6.5641]
[1732131469492,3.28165,3047.3,3046.8,3.93846]
[1732131469688,3.28165,3047.3,3046.8,3.28205]
[1732131469851,6.56332,3047.3,3046.8,3.28205]
[1732131470047,3.28165,3047.3,3046.8,3.28205]
[1732131470667,0.8094,3047.4,3046.9,6.56391]
[1732131470980,0.8094,3047.4,3047.0,0.656391]
[1732131471149,0.8094,3047.4,3046.9,3.28194]
[1732131471755,0.8094,3047.4,3046.8,3.28206]
[1732131472809,4.09089,3047.4,3046.4,3.28249]
[1732131473011,0.8094,3047.4,3046.6,3.28227]
[1732131473419,0.8094,3047.4,3046.4,3.28248]
[1732131473915,0.8094,3047.4,3046.5,3.28244]
[1732131474133,0.8094,3047.4,3046.4,3.76800878]
[1732131474284,0.8094,3047.4,3046.6,3.28233]
[1732131474490,0.8094,3047.4,3046.4,7.05046878]
[1732131474692,0.8094,3047.4,3046.4,3.76798878]
[1732131474902,0.8094,3047.4,3046.5,3.65920888]
[1732131475109,0.8094,3047.4,3046.6,3.28231]
[1732131476339,3.81203336,3046.9,3045.7,3.28321]
[1732131476552,0.7927,3046.6,3045.7,3.28325]
[1732131476712,4.07511,3046.6,3045.7,3.693745]
[1732131476903,0.7927,3046.6,3045.7,3.693745]
[1732131477099,0.7927,3046.6,3045.7,6.976975]
[1732131477319,0.7927,3046.6,3045.8,3.2832]
[1732131477554,0.8245,3047.4,3045.9,0.3693695]
[1732131477721,0.8245,3047.4,3046.6,6.5646]
[1732131477902,0.8245,3047.4,3046.6,3.28227]
[1732131478109,0.8245,3047.4,3046.8,3.28212]
[1732131478307,0.8245,3047.4,3047.0,3.28185]
[1732131478509,0.8245,3047.4,3047.1,3.28174]
[1732131478705,0.8245,3047.4,3047.0,3.28185]
[1732131478706,0.8245,3047.4,3047.2,3.28165]
[1732131478900,0.8245,3047.4,3047.3,3.28159]
[1732131479141,0.8198,3048.2,3047.4,3.28143]
[1732131479446,0.8198,3048.2,3047.0,0.7654]
[1732131479751,0.8198,3048.2,3047.2,3.28163]
[1732131479752,3.28081,3048.1,3047.2,3.28163]
[1732131479902,4.10051,3048.2,3047.2,3.28163]
[1732131480108,3.2808,3048.1,3047.2,3.28163]
[1732131480465,3.2808,3048.1,3047.0,3.2819]
[1732131480466,0.8198,3047.7,3047.0,3.2819]
[1732131480606,0.8198,3047.7,3046.7,3.2822]
[1732131480607,3.28143,3047.5,3046.7,3.2822]
[1732131480804,3.01933336,3047.8,3046.7,3.2822]
[1732131480805,4.1013,3047.4,3046.7,3.2822]
[1732131481308,0.8198,3047.4,3046.3,1.25674634]
[1732131481501,0.8198,3047.1,3046.0,3.28293]
[1732131481732,3.28198,3047.0,3046.0,3.611223]
[1732131481921,3.01933336,3046.6,3045.8,3.28316]
[1732131482107,0.8198,3046.5,3045.9,3.2831]
[1732131482307,0.8198,3046.5,3045.7,3.28328]
[1732131482531,0.8198,3046.5,3045.7,0.733205]
[1732131482755,0.8198,3046.5,3045.8,3.28313]
[1732131483055,0.8198,3046.5,3045.3,3.28374]
[1732131483204,0.8198,3046.5,3046.3,3.2826]
[1732131483403,0.8198,3046.5,3045.9,3.28309]
[1732131483804,0.8198,3046.5,3045.4,0.37754]
[1732131484036,4.10225,3046.5,3045.5,3.28353]
[1732131484251,3.28267,3046.3,3045.4,3.28355]
[1732131484404,3.28267,3046.3,3045.5,3.28345]
[1732131484744,4.10877,3046.4,3045.6,3.28335]
[1732131484919,0.8262,3046.4,3045.8,3.2832]
[1732131485352,0.8262,3046.4,3045.8,6.56634]
[1732131485523,0.8262,3046.4,3045.8,3.28314]
[1732131485949,0.8262,3046.4,3045.7,3.28331]
[1732131486160,3.28268,3046.3,3045.6,3.28336]
[1732131486658,4.10883,3046.4,3045.6,3.28336]
[1732131487031,0.8262,3046.4,3045.8,3.28311]
[1732131487210,0.8262,3046.4,3046.3,3.28267]
[1732131487414,0.8262,3046.4,3046.1,3.28282]
[1732131488047,0.8262,3046.4,3046.1,6.56558]
[1732131488256,0.8262,3046.4,3046.2,3.28277]
[1732131488403,0.8262,3046.4,3046.3,3.28267]
[1732131488606,4.05267,3047.2,3046.1,3.28283]
[1732131488807,4.05267,3047.2,3046.3,3.2826]
[1732131489016,4.05267,3047.2,3046.1,0.328279]
[1732131489017,0.7709,3047.2,3046.5,3.28242]
[1732131489244,0.7709,3047.2,3046.8,3.2821]
[1732131489604,0.7709,3047.2,3046.8,6.56414]
[1732131489850,0.7709,3047.2,3046.6,3.28231]
[1732131490009,0.7709,3047.2,3046.8,3.28211]
[1732131490924,0.7709,3047.2,3046.8,3.28206]
[1732131492114,0.7709,3047.2,3046.5,0.7784]
[1732131492317,7.05347,3047.9,3047.2,3.28169]
[1732131492516,0.7725,3047.9,3047.2,3.28169]
[1732131492769,0.7725,3047.9,3047.3,3.28158]
[1732131492979,0.7725,3047.9,3047.5,3.28136]
[1732131493270,0.7725,3047.9,3047.0,3.28188]
[1732131493429,0.7725,3047.9,3047.4,3.28145]
[1732131493756,0.7725,3047.9,3047.4,3.28139]
[1732131494062,0.7725,3047.9,3047.5,3.28137]
[1732131494219,0.7725,3047.9,3047.6,3.28118]
[1732131494420,0.7725,3047.9,3047.8,3.28105]
[1732131494696,0.7759,3048.4,3047.8,3.28105]
[1732131495012,0.7759,3048.4,3047.6,3.28118]
[1732131495013,4.05631,3048.4,3047.6,3.28118]
[1732131495418,0.7759,3048.4,3047.7,3.28113]
[1732131495616,4.05632,3048.4,3047.6,3.28118]
[1732131495854,3.28053,3048.3,3047.6,3.28118]
[1732131496244,3.28054,3048.3,3047.5,6.56258]
[1732131496449,3.28054,3048.3,3047.5,3.28128]
[1732131496633,4.06843,3048.1,3047.1,3.28177]
[1732131496831,0.7876,3047.8,3047.1,3.28177]
[1732131497048,4.06866,3047.8,3047.1,3.28177]
[1732131497228,4.06866,3047.8,3047.4,3.28141]
[1732131497229,0.7876,3047.8,3047.4,3.28141]
[1732131497731,0.7876,3047.8,3047.5,3.28137]
[1732131498983,4.06866,3047.8,3047.1,3.2818]
[1732131499277,0.01,3048.3,3046.6,0.77815394]
[1732131499278,0.7876,3047.4,3046.8,3.28212]
[1732131499483,0.7876,3047.4,3046.9,3.28202]
[1732131499651,0.7876,3047.4,3047.0,0.328202]
[1732131499862,0.7876,3047.4,3046.2,3.72074938]
[1732131500187,0.7876,3047.7,3047.3,3.28153]
[1732131500382,0.7876,3047.7,3047.4,0.328153]
[1732131500567,0.7876,3047.7,3047.3,3.28153]
[1732131500741,0.7876,3047.7,3047.4,3.28147]
[1732131501152,0.7876,3047.7,3047.3,3.28158]
[1732131501437,0.7876,3047.7,3047.4,3.28146]
[1732131503345,0.7876,3047.7,3047.5,3.28137]
[1732131503539,0.7876,3047.7,3047.3,3.2815]
[1732131503770,0.7876,3047.7,3047.4,3.28144]
[1732131503953,0.7876,3047.7,3047.5,3.28137]
[1732131504480,0.8245,3048.0,3047.7,3.28107]
[1732131504649,0.8245,3048.0,3047.8,3.28104]
[1732131504850,3.28033,3048.5,3047.8,3.28104]
[1732131504851,0.8077,3048.4,3047.8,3.28104]
[1732131505055,0.8077,3048.4,3047.9,3.28091]
[1732131505242,0.8077,3048.4,3048.1,3.28069]
[1732131505594,0.8077,3048.4,3047.6,3.28116]
[1732131505785,3.28051,3048.3,3047.7,3.28108]
[1732131506006,0.8077,3048.4,3047.9,3.28093]
[1732131506145,3.28052,3048.3,3047.7,3.28107]
[1732131506343,0.8077,3048.4,3047.3,0.7734]
[1732131506344,4.08814,3048.4,3047.3,0.7734]
[1732131506570,0.8077,3048.4,3047.4,0.44833788]
[1732131506747,0.8077,3048.4,3048.0,3.28075]
[1732131506944,0.8077,3048.4,3047.8,3.28097]
[1732131507389,0.8077,3048.4,3048.0,3.28083]
[1732131507690,0.8077,3048.4,3047.8,3.28097]
[1732131507855,0.8077,3048.4,3047.6,0.55]
[1732131508064,0.8077,3048.4,3047.9,3.28085]
[1732131508368,0.8077,3048.4,3048.1,3.2807]
[1732131509191,0.8077,3048.4,3047.1,0.4514378]
[1732131509346,3.28051,3048.3,3047.7,3.2811]
[1732131510887,4.08818,3048.4,3048.1,3.28072]
[1732131510888,0.8077,3048.4,3048.1,3.28072]
[1732131511084,0.8077,3048.4,3047.9,3.28093]
[1732131511272,0.8077,3048.4,3048.1,3.2807]
[1732131511747,0.8077,3048.4,3048.1,6.56134]
[1732131511948,0.8077,3048.4,3047.5,0.55]
[1732131511949,0.8087,3048.7,3047.8,0.7708]
[1732131512266,3.27862,3050.1,3047.8,0.7708]
[1732131512267,0.8087,3049.0,3048.7,3.28006]
[1732131512449,0.8087,3049.0,3048.6,3.28016]
[1732131512649,0.8087,3049.0,3048.8,3.27997]
[1732131513053,0.8087,3049.0,3048.7,3.28004]
[1732131513509,0.8087,3049.0,3048.4,4.07354]
[1732131513660,4.08851,3049.0,3048.4,3.28034]
[1732131514199,0.8087,3049.0,3048.6,3.28018]
[1732131514552,0.8087,3049.0,3048.4,3.28032]
[1732131515062,3.27987,3048.9,3048.4,3.28032]
[1732131515263,3.27987,3048.9,3048.1,0.7932]
[1732131515465,6.55984,3048.9,3048.2,3.28057]
[1732131515667,3.28001,3048.8,3048.2,3.28057]
[1732131515903,0.769,3048.7,3047.8,3.28097]
[1732131516109,0.769,3048.7,3047.7,3.28111]
[1732131516110,3.28053,3048.3,3047.7,3.28111]
[1732131516412,3.28037,3048.5,3047.9,3.2809]
[1732131516711,3.28037,3048.5,3047.8,3.28103]
[1732131517005,3.2804,3048.4,3047.8,3.28105]
[1732131517596,0.769,3048.7,3047.8,0.656216]
[1732131517812,3.28048,3048.4,3047.5,4.07454]
[1732131518074,0.7881,3048.6,3047.2,0.7998]
[1732131518276,4.06911,3047.9,3047.3,3.28151]
[1732131518513,0.7881,3048.2,3047.7,3.28107]
[1732131519113,4.06873,3048.2,3047.7,3.28107]
[1732131519260,0.7881,3048.2,3047.7,3.28107]
[1732131519466,3.28043,3048.4,3047.8,3.28095]
[1732131519760,0.7881,3048.5,3047.9,3.28092]
[1732131520108,4.06846,3048.5,3048.0,3.28077]
[1732131520763,0.7881,3048.5,3048.0,3.28077]
[1732131520985,3.27973,3049.1,3048.0,0.407677]
[1732131521320,0.78200082,3049.6,3048.5,3.28029]
[1732131521321,4.06901,3049.0,3048.5,3.28029]
[1732131521526,4.06901,3049.0,3048.1,0.55]
[1732131521527,0.7892,3049.0,3048.1,0.55]
[1732131521680,0.7892,3049.0,3048.1,4.213751]
[1732131521881,0.7892,3049.0,3048.6,6.56028]
[1732131522115,0.7892,3049.0,3048.6,3.28014]
[1732131522321,0.7892,3049.0,3048.8,3.27994]
[1732131522679,4.09498,3049.3,3048.8,3.27994]
[1732131523028,3.27955,3049.2,3048.8,3.27994]
[1732131523522,0.8155,3049.3,3048.8,3.27992]
[1732131523523,4.09496,3049.3,3048.8,3.27992]
[1732131523826,4.09496,3049.3,3048.4,4.03865]
[1732131523827,0.8155,3049.3,3048.4,4.03865]
[1732131524032,0.8155,3049.3,3048.4,3.28035]
[1732131524236,3.27975,3049.1,3048.4,3.28035]
[1732131524530,3.27983,3049.0,3048.5,3.28029]
[1732131525926,6.55966,3049.0,3048.5,3.28029]
[1732131526228,3.27983,3049.0,3048.5,3.28029]
[1732131526430,3.27991,3048.9,3048.3,3.28044]
[1732131526629,3.22991,3048.9,3048.4,3.28037]
[1732131526836,3.22991,3048.9,3048.3,0.463379]
[1732131527033,0.8311,3048.7,3048.1,4.08393]
[1732131527199,0.8311,3048.7,3048.3,3.28051]
[1732131527387,0.8311,3048.7,3048.4,3.28034]
[1732131527740,0.8311,3049.0,3048.6,3.28009]
[1732131527884,0.8311,3049.0,3048.7,3.936102]
[1732131528081,0.8311,3049.3,3048.7,3.28001]
[1732131528281,0.8311,3049.3,3049.0,3.27975]
[1732131528504,3.27915,3049.6,3049.0,3.27974]
[1732131528505,3.27917,3049.6,3049.0,3.27974]
[1732131528710,3.27917,3049.6,3049.0,3.2797]
[1732131528911,3.27917,3049.6,3048.7,1.153801]
[1732131529146,3.27917,3049.6,3049.0,3.27976]
[1732131529327,3.27911,3049.6,3049.0,3.27976]
[1732131529524,3.27927,3049.5,3049.0,3.27969]
[1732131530143,3.27952,3049.3,3048.6,6.56018]
[1732131530347,3.27933,3049.4,3048.7,3.27999]
[1732131530525,3.27924,3049.5,3049.0,3.27968]
[1732131530726,3.27961,3049.2,3048.6,3.2801]
[1732131530925,3.27961,3049.2,3048.6,3.73661699]
[1732131531446,3.27935,3049.4,3048.8,3.27992]
[1732131531609,3.27935,3049.4,3048.6,3.73661699]
[1732131531950,3.27957,3049.2,3048.7,0.3736617]
[1732131532290,3.27957,3049.2,3048.6,0.45651699]
[1732131532460,3.27975,3049.1,3048.6,0.45651699]
[1732131532761,3.27975,3049.1,3048.5,6.28026]
[1732131532762,3.2798,3049.0,3048.5,3.28024]
[1732131533063,6.55965,3049.0,3048.4,4.53266189]
[1732131533364,3.27987,3048.9,3048.4,4.53261189]
[1732131533867,3.27978,3049.0,3048.4,4.53261189]
[1732131534215,3.27978,3049.0,3048.4,1.25227189]
[1732131534416,4.05569,3049.4,3048.7,3.28001]
[1732131534797,3.27956,3049.2,3048.5,3.28025]
[1732131534969,3.27982,3049.0,3048.3,3.28042]
[1732131535118,3.27982,3049.0,3048.4,3.28039]
[1732131535559,3.27982,3049.0,3048.5,3.28028]
[1732131535965,6.55967,3049.0,3048.5,3.28028]
[1732131536118,3.27982,3049.0,3048.5,3.28028]
[1732131536311,3.27965,3049.1,3048.5,3.28028]
[1732131536541,3.27965,3049.1,3048.6,3.28019]
[1732131536726,3.27977,3049.0,3048.4,3.621313]
[1732131537128,3.27977,3049.0,3048.4,6.901663]
[1732131537532,3.27956,3049.2,3048.6,3.28013]
[1732131537868,3.27976,3049.1,3048.6,3.28013]
[1732131538318,3.27956,3049.2,3048.6,3.28013]
[1732131538516,3.27946,3049.3,3048.6,3.28013]
[1732131538763,3.27955,3049.2,3048.6,6.92563331]
[1732131538920,3.27955,3049.2,3048.7,3.28008]
[1732131539269,3.27955,3049.2,3048.8,3.27997]
[1732131539429,3.27955,3049.2,3048.6,3.64550331]
[1732131539636,3.27955,3049.2,3048.6,6.92558331]
[1732131539859,3.27955,3049.2,3048.7,4.74607833]
[1732131540064,3.27967,3049.1,3048.7,0.7735]
[1732131540271,3.27992,3048.9,3048.3,4.05394]
[1732131540423,3.27978,3049.0,3048.3,1.178894]
[1732131540757,3.27978,3049.0,3048.4,3.28033]
[1732131541092,3.27969,3049.1,3048.5,3.28028]
[1732131541278,6.55942,3049.1,3048.5,3.28028]
[1732131541473,3.27977,3049.0,3048.5,3.28028]
[1732131542245,3.27988,3048.9,3048.4,3.2804]
[1732131542438,3.27977,3049.0,3048.4,6.56073]
[1732131542643,3.27977,3049.0,3048.4,3.28033]
[1732131542923,6.55963,3049.0,3048.4,3.28033]
[1732131543743,3.2803,3048.5,3048.0,7.03707]
[1732131543928,3.2803,3048.5,3048.0,0.7563]
[1732131544279,3.28016,3048.7,3048.0,4.03711]
[1732131544434,0.8118,3048.8,3048.3,3.28051]
[1732131544968,4.09183,3048.8,3048.3,3.28051]
[1732131545172,3.27879,3050.0,3048.4,0.03280342]
[1732131545173,0.8118,3049.1,3048.4,0.03280342]
[1732131545476,4.09156,3049.0,3047.9,3.28087]
[1732131545628,3.28035,3048.5,3047.8,0.7563]
[1732131545828,3.28035,3048.5,3047.9,3.68462]
[1732131546173,3.28035,3048.5,3048.0,3.28083]
[1732131546332,0.8118,3049.0,3048.0,3.28083]
[1732131546667,3.28047,3048.4,3047.9,3.68464]
[1732131546839,3.28047,3048.4,3047.8,4.03729]
[1732131547042,3.28035,3048.5,3047.8,4.03728]
[1732131547266,0.7683,3048.4,3047.6,3.28121]
[1732131547589,0.7683,3048.4,3047.6,0.328119]
[1732131547757,3.28055,3048.3,3047.8,3.28098]
[1732131547934,0.7683,3048.4,3047.7,3.28116]
[1732131548129,0.7683,3048.4,3047.9,3.28094]
[1732131548130,4.04871,3048.4,3047.9,3.28094]
[1732131548378,3.28053,3048.3,3047.8,0.328116]
[1732131548545,6.56113,3048.3,3047.8,3.609096]
[1732131548747,3.28053,3048.3,3047.8,3.28098]
[1732131549132,3.28053,3048.3,3047.6,3.28121]
[1732131549361,3.28053,3048.3,3047.7,3.609221]
[1732131549565,3.2807,3048.2,3047.7,0.328121]
[1732131549777,3.2807,3048.2,3047.5,3.28128]
[1732131549778,3.28078,3048.1,3047.5,3.28128]
[1732131550076,3.28078,3048.1,3047.6,3.28124]
[1732131550443,3.2807,3048.2,3047.6,4.019487]
[1732131550757,3.28074,3048.1,3047.6,4.019487]
[1732131551466,3.28069,3048.2,3047.6,0.738247]